[Event "Uppsala GM June 2022"]
[Site "Uppsala"]
[Date "2022.06.19"]
[Round "9.5"]
[White "Falkevall, Axel"]
[Black "Roshka, Yevgeniy"]
[Result "0-1"]
[ECO "B22"]
[WhiteElo "2290"]
[BlackElo "2468"]
[Annotator "TA"]
[PlyCount "126"]
[EventDate "2022.06.09"]
[EventType "tourn"]
[EventCountry "SWE"]
[SourceTitle "playchess.com"]
[Source "ChessBase"]
[SourceQuality "1"]
[TimeControl "5400+30"]

{[%evp 20,126,0,0,0,2,3,0,4,16,23,13,19,0,21,6,8,9,20,4,5,17,18,-19,-9,-16,-10,-10,-7,-29,-17,-12,-16,-65,-33,-37,-37,-47,-29,-33,-22,-59,-56,-50,-20,-33,0,-52,-42,-35,-22,-41,0,-52,-18,-37,-30,-80,-44,-83,-87,-283,-281,-258,-90,-50,-50,-95,-95,-95,-95,-95,-95,-95,-95,-95,-95,-475,-531,-458,-378,-1150,-1444,-1360,-1147,-1132,-1239,-1107,-802,-649,-610,-520,-425,-397,-80,-80,-80,-80,-8,-8,-8,-8,-8,-5081,-864,-29987,-29988,-29988,-29989]} 1. e4 {[%emt 0:00:07]} c5 {[%emt 0:02:55]} 2. c3 {[%emt 0:00:08]} Nf6 {[%emt 0:00:12]} 3. e5 {[%emt 0:00:05]} Nd5 {[%emt 0:00:02]} 4. d4 {[%emt 0:00:05]} cxd4 {[%emt 0:00:06]} 5. Nf3 {[%emt 0:00:06]} Nc6 {[%emt 0:00:46]} 6. Bc4 {[%emt 0:00:12]} Nb6 {[%emt 0:00:47]} 7. Bb3 {[%emt 0:00:05]} d6 {[%emt 0:00:58]} 8. exd6 {[%emt 0:00:28]} Qxd6 {[%emt 0:01:50]} 9. O-O {[%emt 0:00:33]} Be6 {[%emt 0:06:23]} 10. Bxe6 {[%emt 0:00:13]} Qxe6 {[%emt 0:00:01]} 11. Nxd4 {[%emt 0:00:08]} Qd5 {[%emt 0:01:02] B22: Sicilian: 2 c3.} 12. Nxc6 {[%emt 0:01:53]} Qxc6 {[%emt 0:00:22]} 13. Nd2 {[%emt 0:02:50][%cal Bb1d2,Bd2f3,Bf3g5][%mdl 32]} e6 {[%emt 0:03:44] The position is equal.} 14. Qg4 {[%emt 0:00:44]} h5 {[%emt 0:03:56]} 15. Qe2 {[%emt 0:00:20] [#]} Be7 $146 {[%emt 0:09:33]} ({Predecessor:} 15... O-O-O 16. c4 f6 17. b3 e5 18. Ne4 Na8 19. Nc3 Nc7 20. Be3 Kb8 21. Rad1 Bd6 {1-0 (41) Kristjansson,S (2459)-Bindrich,F (2391) Budapest 2005}) 16. Nf3 {[%emt 0:01:41]} Bf6 {[%emt 0:02:01]} 17. Re1 {[%emt 0:04:41]} Qc4 {[%emt 0:02:11]} 18. Qc2 {[%emt 0:03:24]} Rd8 {[%emt 0:06:21]} 19. Bg5 {[%emt 0:03:29]} Bxg5 {[%emt 0:01:23]} 20. Nxg5 {[%emt 0:00:10]} Qd3 {[%emt 0:00:36]} 21. Qxd3 {[%emt 0:02:42]} (21. Qb3 $5 {[%cal Re1e6]} Qd5 22. Ne4 $11) 21... Rxd3 {[%emt 0:01:37]} 22. Rad1 {[%emt 0:00:36]} Rxd1 {[%emt 0:00:18]} 23. Rxd1 $11 {[%emt 0:00:06][%mdl 4096] Endgame KRN-KRN} Ke7 {[%emt 0:00:05]} 24. Ne4 {[%emt 0:05:27]} Rc8 {[%emt 0:00:32]} 25. Kf1 {[%emt 0:01:37]} Rc6 {[%emt 0:05:42]} 26. Rd3 {[%emt 0:04:00]} (26. Rd4 $11) 26... f5 {[%emt 0:05:43]} (26... Na4 $5 {[%cal Ra4b2]} 27. Rd2 f5 $15) 27. Ng3 {[%emt 0:01:07]} g6 {[%emt 0:02:47]} 28. b3 {[%emt 0:05:02] Against Na4} e5 {[%emt 0:06:06][%cal Be6e5,Be5e4][%mdl 32]} 29. c4 {[%emt 0:08:04]} e4 {[%emt 0:01:59]} 30. Rd2 {[%emt 0:00:52]} Rd6 {[%emt 0:00:11]} 31. Ke2 {[%emt 0:01:52]} Rxd2+ {[%emt 0:01:37]} 32. Kxd2 $15 {[%emt 0:00:08] KN-KN} Kd6 {[%emt 0:00:07]} (32... h4 $5 {[%cal Rh4g3]} 33. Ne2 Kf6 $11) 33. Ke3 {[%emt 0:03:27]} (33. h4 $11) 33... Ke5 $1 {[%emt 0:00:02]} 34. f4+ {[%emt 0:04:54]} exf3 {[%emt 0:00:05]} 35. Kxf3 {[%emt 0:00:04]} Nd7 {[%emt 0:01:02]} (35... h4 $5 {[%cal Rh4g3]} 36. Nh1 a5 $11) 36. Ne2 {[%emt 0:01:56]} (36. h4 $11) 36... h4 {[%emt 0:03:24]} 37. g3 {[%emt 0:03:39]} hxg3 {[%emt 0:00:02]} 38. hxg3 {[%emt 0:00:49]} (38. h4 $11 {remains equal.}) 38... Nf6 {[%emt 0:00:57]} 39. Ke3 {[%emt 0:05:11]} g5 {[%emt 0:02:00][%cal Bg6g5,Bg5g4][%mdl 32]} 40. Ng1 $2 {[%emt 0:03:45]} (40. b4 $17 {was necessary.}) 40... g4 $19 {[%emt 0:06:16]} 41. Ne2 {[%emt 0:01:13]} Nh5 {[%emt 0:00:03]} (41... Ne4 $19 {[%cal Oe4g3] aiming for ...Nxg3!} 42. Kd3 a5) 42. Kf2 $17 {[%emt 0:01:23]} a6 {[%emt 0:00:23]} 43. b4 {[%emt 0:01:10]} Ke4 $1 {[%emt 0:00:59]} 44. a3 {[%emt 0:02:49]} Kd3 {[%emt 0:02:58]} 45. c5 {[%emt 0:00:11]} Nf6 {[%emt 0:00:02] Strongly threatening ...Ne4+.} 46. Nf4+ {[%emt 0:01:24]} Kc4 {[%emt 0:00:02]} 47. Ne6 {[%emt 0:02:56]} Kb3 {[%emt 0:00:24]} 48. Nd8 $2 {[%emt 0:03:01][%mdl 8192]} (48. Nd4+ $17 Kxa3 49. b5) 48... Kxa3 $19 {[%emt 0:00:13]} 49. Nxb7 {[%emt 0:01:25]} Kxb4 {[%emt 0:00:02]} 50. c6 $2 {[%emt 0:00:29]} (50. Nd6 Kxc5 51. Nxf5) 50... Ne8 $1 {[%emt 0:03:03]} 51. Ke3 {[%emt 0:01:54]} Kb5 $1 {[%emt 0:00:10]} 52. c7 {[%emt 0:01:54]} Nxc7 {[%emt 0:00:01] Threatens to win with ...a5.} 53. Nd6+ {[%emt 0:00:04]} Kb4 {[%emt 0:00:25]} 54. Nxf5 {[%emt 0:00:46]} Kc3 $1 {[%emt 0:00:24]} 55. Nd6 {[%emt 0:01:36]} a5 {[%emt 0:01:25] Hoping for ...a4.} 56. Ne4+ {[%emt 0:00:28]} Kc4 $2 {[%emt 0:06:53]} (56... Kb2 $19 {And now ...a4 would win.} 57. Nc5 Kc3 58. Ne4+ Kc2) 57. Kd2 $17 {[%emt 0:02:33]} a4 {[%emt 0:00:32]} 58. Kc2 {[%emt 0:01:10]} a3 {[%emt 0:01:15]} (58... Nd5 $1 $17 59. Kb2 Kb4) 59. Nf2 $11 {[%emt 0:02:22]} Nd5 {[%emt 0:03:00]} 60. Nxg4 {[%emt 0:00:43]} Kb4 {[%emt 0:00:09]} 61. Ne5 $2 {[%emt 0:04:05][%mdl 8192] [#]} (61. Nf2 $11) 61... Ne3+ $1 $19 {[%emt 0:00:06]} 62. Kc1 {[%emt 0:00:23] [#]} Kc3 $1 {[%emt 0:00:24]} 63. Kb1 {[%emt 0:01:12]} Kb3 {[%emt 0:00:01] Weighted Error Value: White=0.52/Black=0.20 (precise)} 0-1